bitfinex-derivatives/quotes_BNBF0:USTF0_20250608
["timestamp","ask_amount","ask_price","bid_price","bid_amount"]
[1749413658691,0.26571883,655.1,654.18,0.30572625]
[1749413658894,1.09215572,655.09,654.18,0.30572625]
[1749413659095,1.09215572,655.08,654.18,0.30572625]
[1749413659291,1.09215572,655.07,654.18,0.30572625]
[1749413659490,1.09215572,655.06,654.18,0.30572625]
[1749413659795,1.09215572,655.05,654.18,0.30572625]
[1749413660096,1.09215572,655.04,654.18,0.30572625]
[1749413660291,1.09215572,655.03,654.18,0.30572625]
[1749413660495,1.09215572,655.02,654.18,0.30572625]
[1749413660694,1.09215572,655.01,654.18,0.30572625]
[1749413660895,1.09215572,655.0,654.18,0.30572625]
[1749413661193,1.09215572,654.99,654.18,0.30572625]
[1749413661398,1.09215572,654.98,654.18,0.30572625]
[1749413661693,1.09215572,654.97,654.18,0.30572625]
[1749413661892,1.09215572,654.96,654.18,0.30572625]
[1749413662092,1.09215572,654.95,654.18,0.30572625]
[1749413662294,0.26571883,655.1,654.18,0.30572625]
[1749413662491,1.09155218,655.09,654.18,0.30572625]
[1749413662796,1.09155218,655.08,654.18,0.30572625]
[1749413662997,1.09155218,655.07,654.18,0.30572625]
[1749413663196,1.09155218,655.06,654.18,0.30572625]
[1749413663397,1.09155218,655.05,654.18,0.30572625]
[1749413663597,1.09155218,655.04,654.18,0.30572625]
[1749413663894,1.09155218,655.03,654.18,0.30572625]
[1749413664097,1.09155218,655.02,654.18,0.30572625]
[1749413664296,1.09155218,655.01,654.18,0.30572625]
[1749413664498,1.09155218,655.0,654.18,0.30572625]
[1749413664694,1.09155218,654.99,654.18,0.30572625]
[1749413664894,0.26571883,655.1,654.18,0.30572625]
[1749413664895,1.09155218,654.98,654.18,0.30572625]
[1749413665097,1.09155218,654.97,654.18,0.30572625]
[1749413665298,1.09155218,654.96,654.18,0.30572625]
[1749413665497,0.26571883,655.1,654.18,0.30572625]
[1749413665698,1.09149732,655.09,654.18,0.30572625]
[1749413665998,1.09149732,655.08,654.18,0.30572625]
[1749413666197,1.09149732,655.07,654.18,0.30572625]
[1749413666395,1.09149732,655.06,654.18,0.30572625]
[1749413666599,1.09149732,655.05,654.18,0.30572625]
[1749413666795,1.09149732,655.04,654.18,0.30572625]
[1749413667094,1.09149732,655.03,654.18,0.30572625]
[1749413667300,1.09149732,655.02,654.18,0.30572625]
[1749413667500,1.09149732,655.01,654.18,0.30572625]
[1749413667697,1.09149732,655.0,654.18,0.30572625]
[1749413667901,1.09149732,654.99,654.18,0.30572625]
[1749413668197,1.09149732,654.98,654.18,0.30572625]
[1749413668401,1.09149732,654.97,654.18,0.30572625]
[1749413668598,1.09149732,654.96,654.18,0.30572625]
[1749413668804,0.26571883,655.1,654.18,0.30572625]
[1749413668998,1.0914799,655.09,654.18,0.30572625]
[1749413669204,1.0914799,655.08,654.18,0.30572625]
[1749413669503,1.0914799,655.07,654.18,0.30572625]
[1749413669702,1.0914799,655.06,654.18,0.30572625]
[1749413669899,1.0914799,655.05,654.18,0.30572625]
[1749413670103,1.0914799,655.04,654.18,0.30572625]
[1749413670305,1.0914799,655.03,654.18,0.30572625]
[1749413670505,1.0914799,655.02,654.18,0.30572625]
[1749413670702,1.0914799,655.01,654.18,0.30572625]
[1749413670906,1.0914799,655.0,654.18,0.30572625]
[1749413671107,1.0914799,654.99,654.18,0.30572625]
[1749413671301,1.0914799,654.98,654.18,0.30572625]
[1749413671601,0.26571883,655.1,654.18,0.30572625]
[1749413671602,1.0914799,654.97,654.18,0.30572625]
[1749413671803,1.0914799,654.96,654.18,0.30572625]
[1749413672107,0.26571883,655.1,654.18,0.30572625]
[1749413672307,1.09111306,655.09,654.18,0.30572625]
[1749413672606,1.09111306,655.08,654.18,0.30572625]
[1749413672905,1.09111306,655.07,654.18,0.30572625]
[1749413673102,1.09111306,655.06,654.18,0.30572625]
[1749413673303,1.09111306,655.05,654.18,0.30572625]
[1749413673602,1.09111306,655.04,654.18,0.30572625]
[1749413673807,1.09111306,655.03,654.18,0.30572625]
[1749413674007,1.09111306,655.02,654.18,0.30572625]
[1749413674209,1.09111306,655.01,654.18,0.30572625]
[1749413674507,1.09111306,655.0,654.18,0.30572625]
[1749413674707,1.09111306,654.99,654.18,0.30572625]
[1749413674908,1.09111306,654.98,654.18,0.30572625]
[1749413675107,1.09111306,654.97,654.18,0.30572625]
[1749413675406,1.09111306,654.96,654.18,0.30572625]
[1749413675607,0.26571883,655.1,654.18,0.30572625]
[1749413675801,1.0909297,655.09,654.18,0.30572625]
[1749413676002,1.0909297,655.08,654.18,0.30572625]
[1749413676201,1.09092987,655.07,654.18,0.30572625]
[1749413676403,1.09092987,655.06,654.18,0.30572625]
[1749413676607,1.09092987,655.05,654.18,0.30572625]
[1749413676805,1.09092987,655.04,654.18,0.30572625]
[1749413677106,1.09092987,655.03,654.18,0.30572625]
[1749413677308,1.09092987,655.02,654.18,0.30572625]
[1749413677510,1.09092987,655.01,654.18,0.30572625]
[1749413677806,1.09092987,655.0,654.18,0.30572625]
[1749413678009,0.26571883,655.1,654.18,0.30572625]
[1749413678010,1.09092987,654.99,654.18,0.30572625]
[1749413678309,1.09092987,654.98,654.18,0.30572625]
[1749413678504,1.09092987,654.97,654.18,0.30572625]
[1749413678706,0.26571883,655.1,654.18,0.30572625]
[1749413678909,1.09096724,655.09,654.18,0.30572625]
[1749413679106,1.09096724,655.08,654.18,0.30572625]
[1749413679305,1.09096724,655.07,654.18,0.30572625]
[1749413679508,1.09096724,655.06,654.18,0.30572625]
[1749413679705,1.09096724,655.05,654.18,0.30572625]
[1749413680009,1.09096724,655.04,654.18,0.30572625]
[1749413680307,1.09096724,655.03,654.18,0.30572625]
[1749413680510,1.09096724,655.02,654.18,0.30572625]
[1749413680706,1.09096724,655.01,654.18,0.30572625]
[1749413680910,1.09096724,655.0,654.18,0.30572625]
[1749413681105,1.09096724,654.99,654.18,0.30572625]
[1749413681406,1.09096724,654.98,654.19,3.78945825]
[1749413681610,1.09096724,654.97,654.19,3.78945825]
[1749413681810,0.26571883,655.1,654.2,3.78945825]
[1749413682113,1.09096655,655.09,654.2,3.78945825]
[1749413682311,1.09096655,655.08,654.2,3.78945825]
[1749413682509,1.09096655,655.07,654.2,3.78945825]
[1749413682706,1.09096655,655.06,654.21,3.78945825]
[1749413682906,1.09096655,655.05,654.21,3.78945825]
[1749413683108,1.09096655,655.04,654.21,3.78945825]
[1749413683411,1.09096655,655.03,654.21,3.78945825]
[1749413683607,1.09096655,655.02,654.22,3.78945825]
[1749413683911,1.09096655,655.01,654.22,3.78945825]
[1749413684210,1.09096655,655.0,654.18,0.30572625]
[1749413684411,1.09096655,654.99,654.18,0.30572625]
[1749413684711,0.26571883,655.1,654.18,0.30572625]
[1749413684712,1.09096655,654.98,654.18,0.30572625]
[1749413685008,1.09096655,654.97,654.18,0.30572625]
[1749413685311,0.26571883,655.1,654.18,0.30572625]
[1749413685514,1.09111276,655.09,654.18,0.30572625]
[1749413685810,1.09111276,655.08,654.18,0.30572625]
[1749413686010,1.09111276,655.07,654.18,0.30572625]
[1749413686206,1.09111276,655.06,654.18,0.30572625]
[1749413686510,1.09111276,655.05,654.18,0.30572625]
[1749413686707,1.09111276,655.04,654.18,0.30572625]
[1749413686912,1.09111276,655.03,654.18,0.30572625]
[1749413687112,1.09111276,655.02,654.18,0.30572625]
[1749413687313,0.26571883,655.1,654.18,0.30572625]
[1749413687514,1.0910602,655.09,654.18,0.30572625]
[1749413687814,1.0910602,655.08,654.2,3.78945825]
[1749413688013,1.0910602,655.07,654.2,3.78945825]
[1749413688210,1.0910602,655.06,654.2,3.78945825]
[1749413688414,1.0910602,655.05,654.2,3.78945825]
[1749413688615,1.0910602,655.04,654.2,3.78945825]
[1749413688815,1.0910602,655.03,654.2,3.78945825]
[1749413689016,0.26571883,655.1,654.19,3.78945825]
[1749413689311,1.09076812,655.09,654.19,3.78945825]
[1749413689611,1.09076812,655.08,654.19,3.78945825]
[1749413689812,1.09076812,655.07,654.19,3.78945825]
[1749413690115,1.09076812,655.06,654.19,3.78945825]
[1749413690312,1.09076812,655.05,654.19,3.78945825]
[1749413690519,1.09076812,655.04,654.19,3.78945825]
[1749413690714,1.09060998,655.03,654.19,3.78945825]
[1749413690914,0.26571883,655.1,654.19,3.78945825]
[1749413691114,1.09060998,655.09,654.19,3.78945825]
[1749413691315,1.09060998,655.08,654.19,3.78945825]
[1749413691616,1.09060998,655.07,654.18,4.0951845]
[1749413691912,0.26571883,655.1,654.18,4.0951845]
[1749413691913,1.09060998,655.06,654.18,4.0951845]
[1749413692113,0.26571883,655.1,654.21,3.78945825]
[1749413692317,1.09055099,655.09,654.21,3.78945825]
[1749413692514,1.09055099,655.08,654.21,3.78945825]
[1749413692713,1.09055099,655.07,654.21,3.78945825]
[1749413692918,1.09055099,655.06,654.21,3.78945825]
[1749413693216,0.26571883,655.1,654.2,3.78945825]
[1749413693414,1.09057656,655.09,654.21,3.78945825]
[1749413693618,1.09057656,655.08,654.21,3.78945825]
[1749413693814,1.09057656,655.07,654.21,3.78945825]
[1749413694017,1.09057656,655.06,654.25,3.78945825]
[1749413694217,0.26571883,655.1,654.25,3.78945825]
[1749413694415,1.09064327,655.09,654.26,3.78945825]
[1749413694715,1.09064327,655.08,654.26,3.78945825]
[1749413694916,1.09064327,655.07,654.25,3.78945825]
[1749413695119,1.09064327,655.06,654.25,3.78945825]
[1749413695321,0.26571883,655.1,654.25,3.78945825]
[1749413695521,1.09060597,655.09,654.25,3.78945825]
[1749413695717,0.26571883,655.1,654.18,0.30572625]
[1749413695718,1.09060597,655.08,654.23,3.78945825]
[1749413696021,1.09060597,655.07,654.23,3.78945825]
[1749413696221,1.09060597,655.06,654.25,3.78945825]
[1749413696522,0.26571883,655.1,654.25,3.78945825]
[1749413696821,1.09057234,655.09,654.25,3.78945825]
[1749413697017,1.09057234,655.08,654.18,0.30572625]
[1749413697218,1.09057234,655.07,654.18,0.30572625]
[1749413697421,0.26571883,655.1,654.18,0.30572625]
[1749413697422,1.09057234,655.06,654.18,0.30572625]
[1749413697622,0.26571883,655.1,654.18,0.30572625]
[1749413697821,1.09051689,655.09,654.18,0.30572625]
[1749413698020,1.09051689,655.08,654.18,0.30572625]
[1749413698224,1.09051689,655.07,654.18,0.30572625]
[1749413698523,1.09051689,655.06,654.18,0.30572625]
[1749413698725,0.26571883,655.1,654.18,0.30572625]
[1749413698925,1.09045343,655.09,654.18,0.30572625]
[1749413699220,1.09045343,655.08,654.18,0.30572625]
[1749413699424,1.09045343,655.07,654.18,0.30572625]
[1749413699626,1.09045343,655.06,654.18,0.30572625]
[1749413699925,0.26571883,655.1,654.18,0.30572625]
[1749413700120,1.09031583,655.09,654.18,0.30572625]
[1749413700321,1.09031583,655.08,654.18,0.30572625]
[1749413700525,1.09031583,655.07,654.18,0.30572625]
[1749413700722,1.09031583,655.06,654.18,0.30572625]
[1749413700925,0.26571883,655.1,654.18,0.30572625]
[1749413701225,1.0903172,655.09,654.18,0.30572625]
[1749413701420,1.0903172,655.08,654.18,0.30572625]
[1749413701623,1.0903172,655.07,654.18,0.30572625]
[1749413701822,1.0903172,655.06,654.18,0.30572625]
[1749413702022,1.09029198,655.05,654.18,0.30572625]
[1749413702320,1.09029198,655.04,654.18,0.30572625]
[1749413702521,1.1435431,655.26,654.18,0.30572625]
[1749413702824,1.09029367,655.25,654.18,0.30572625]
[1749413703024,1.09029367,655.24,654.18,0.30572625]
[1749413703225,1.09029367,655.23,654.18,0.30572625]
[1749413703425,1.09029367,655.22,654.18,0.30572625]
[1749413703725,1.09029367,655.21,654.18,0.30572625]
[1749413703928,1.09029367,655.2,654.18,0.30572625]
[1749413704122,0.26574927,654.96,654.18,0.30572625]
[1749413714532,0.26574927,654.96,654.18,4.0951845]
[1749413715028,1.08990682,655.25,654.2,3.78945825]
[1749413715334,0.2657026,655.02,654.21,0.30571223]
[1749413716427,0.2657026,655.02,654.21,4.09517048]
[1749413716830,0.2657026,655.02,654.21,0.30571223]
[1749413724134,1.11454978,655.32,654.21,0.30571223]
[1749413724539,0.2656813,655.11,654.32,3.78945825]
[1749413724735,0.2656813,655.11,654.33,0.30565616]
[1749413759069,1.08736283,655.1,654.33,0.30565616]
[1749413759272,1.08736283,655.09,654.33,0.30565616]
[1749413759471,0.2656813,655.11,654.33,0.30565616]
[1749413759968,1.08736283,655.1,654.33,0.30565616]
[1749413760170,1.08736283,655.09,654.33,0.30565616]
[1749413760368,1.08736283,655.1,654.33,0.30565616]
[1749413760574,1.08736283,655.09,654.33,0.30565616]
[1749413760768,1.08736283,655.1,654.33,0.30565616]
[1749413760969,0.2656813,655.11,654.33,0.30565616]
[1749413760970,1.08736283,655.09,654.33,0.30565616]
[1749413761174,1.08736283,655.08,654.33,0.30565616]
[1749413761371,1.08736283,655.1,654.33,0.30565616]
[1749413761669,1.08736283,655.09,654.33,0.30565616]
[1749413761876,1.08736283,655.1,654.33,0.30565616]
[1749413763873,0.2656813,655.11,654.33,0.30565616]
[1749413764573,1.08736283,655.1,654.33,0.30565616]
[1749413764870,0.2656813,655.11,654.33,0.30565616]
[1749413772275,1.08736283,655.1,654.33,0.30565616]
[1749413775276,1.08736283,655.09,654.33,0.30565616]
[1749413775579,1.08736283,655.08,654.33,0.30565616]
[1749413775875,1.08736283,655.07,654.33,0.30565616]
[1749413776179,2.20078975,655.21,654.33,0.30565616]
[1749413776380,1.08736283,655.2,654.33,0.30565616]
[1749413776580,1.08736283,655.19,654.33,0.30565616]
[1749413776781,1.08736283,655.18,654.33,0.30565616]
[1749413776977,1.08736283,655.17,654.33,0.30565616]
[1749413777174,1.08736283,655.16,654.33,0.30565616]
[1749413777376,1.08736283,655.15,654.33,0.30565616]
[1749413777677,1.08736283,655.14,654.33,0.30565616]
[1749413777878,1.08736283,655.13,654.33,0.30565616]
[1749413778080,1.08736283,655.12,654.33,0.30565616]
[1749413778380,1.08736283,655.11,654.33,0.30565616]
[1749413778576,1.08736283,655.1,654.33,0.30565616]
[1749413778779,1.08736283,655.09,654.33,0.30565616]
[1749413778979,3.43930721,655.25,654.33,0.30565616]
[1749413779177,2.75493712,655.24,654.33,0.30565616]
[1749413779382,3.99385109,655.23,654.33,0.30565616]
[1749413779580,2.20115213,655.22,654.33,0.30565616]
[1749413779776,0.26580002,655.01,654.33,0.30565616]
[1749413783780,0.26580002,655.01,653.96,0.26580002]
[1749413783978,0.26580002,655.01,653.97,0.30582442]
[1749413795391,1.35316285,655.01,653.97,0.30582442]
[1749413795588,0.26580002,655.01,653.97,0.30582442]
[1749413797292,1.08736283,655.0,653.97,0.30582442]
[1749413798092,0.26580002,655.01,653.97,0.30582442]
[1749413798288,1.08736283,655.0,653.97,0.30582442]
[1749413799693,1.08736283,654.99,653.97,0.30582442]
[1749413799887,1.08736283,655.0,653.97,0.30582442]
[1749413800193,1.08736283,654.99,653.97,0.30582442]
[1749413800389,1.08736283,655.0,653.97,0.30582442]
[1749413800588,1.08736283,654.99,653.97,0.30582442]
[1749413800893,1.08736283,655.0,653.97,0.30582442]
[1749413801091,1.08736283,654.99,653.97,0.30582442]
[1749413801289,1.08736283,655.0,653.97,0.30582442]
[1749413801493,1.08736283,654.99,653.97,0.30582442]
[1749413801793,1.08736283,655.0,653.97,0.30582442]
[1749413801992,1.08736283,654.99,653.97,0.30582442]
[1749413802191,1.08736283,655.0,653.97,0.30582442]
[1749413802393,1.08736283,654.99,653.97,0.30582442]
[1749413802693,1.08736283,655.0,653.97,0.30582442]
[1749413802891,1.08736283,654.99,653.97,0.30582442]
[1749413803090,1.08736283,655.0,653.97,0.30582442]
[1749413803291,1.08736283,654.99,653.97,0.30582442]
[1749413803494,1.08736283,654.98,653.97,0.30582442]
[1749413803691,1.08736283,655.0,653.97,0.30582442]
[1749413803892,1.08736283,654.99,653.97,0.30582442]
[1749413804094,1.08736283,654.98,653.97,0.30582442]
[1749413804390,1.08736283,655.0,653.97,0.30582442]
[1749413804588,0.26580002,655.01,653.97,0.30582442]
[1749413804589,1.08736283,654.99,653.97,0.30582442]
[1749413804789,1.08736283,654.98,653.97,0.30582442]
[1749413804992,1.08736283,654.97,653.97,0.30582442]
[1749413805192,1.08736283,655.0,653.97,0.30582442]
[1749413805391,1.08736283,654.99,653.97,0.30582442]
[1749413805596,1.08736283,654.98,653.97,0.30582442]
[1749413805793,1.08736283,654.97,653.97,0.30582442]
[1749413805996,1.08736283,655.0,653.97,0.30582442]
[1749413806293,1.08736283,654.99,653.97,0.30582442]
[1749413806497,1.08736283,654.98,653.97,0.30582442]
[1749413806695,1.08736283,654.97,653.97,0.30582442]
[1749413806892,1.08736283,655.0,653.97,0.30582442]
[1749413807096,1.08736283,654.99,653.97,0.30582442]
[1749413807396,0.26580002,655.01,653.97,0.30582442]
[1749413807397,1.08736283,654.98,653.97,0.30582442]
[1749413807697,1.08736283,654.97,653.97,0.30582442]
[1749413807896,1.08736283,655.0,653.97,0.30582442]
[1749413808198,1.08736283,654.99,653.97,0.30582442]
[1749413808397,1.08736283,654.98,653.97,0.30582442]
[1749413808595,1.08736283,654.97,653.97,0.30582442]
[1749413808794,1.08736283,655.0,653.97,0.30582442]
[1749413808993,1.08736283,654.99,653.97,0.30582442]
[1749413809194,1.08736283,654.98,653.97,0.30582442]
[1749413809395,1.08736283,654.97,653.97,0.30582442]
[1749413809598,1.08736283,655.0,653.97,0.30582442]
[1749413809793,1.08736283,654.99,653.97,0.30582442]
[1749413809995,1.08736283,654.98,653.97,0.30582442]
[1749413810194,1.08736283,654.97,653.97,0.30582442]
[1749413810395,1.08736283,655.0,653.97,0.30582442]
[1749413810594,1.08736283,654.99,653.97,0.30582442]
[1749413810799,1.08736283,654.98,653.97,0.30582442]
[1749413811000,1.08736283,654.97,653.97,0.30582442]
[1749413811297,1.08736283,654.96,653.97,0.30582442]
[1749413811501,1.08736283,655.0,653.97,0.30582442]
[1749413811699,1.08736283,654.99,653.97,0.30582442]
[1749413811897,1.08736283,654.98,653.97,0.30582442]
[1749413812098,1.08736283,654.97,653.97,0.30582442]
[1749413812297,1.08736283,654.96,653.97,0.30582442]
[1749413812498,1.08736283,654.95,653.97,0.30582442]
[1749413812703,1.08736283,655.0,653.97,0.30582442]
[1749413812900,1.08736283,654.99,653.97,0.30582442]
[1749413813203,1.08736283,654.98,653.97,0.30582442]
[1749413813498,1.08736283,654.97,653.97,0.30582442]
[1749413813699,1.08736283,654.96,653.97,0.30582442]
[1749413813898,0.26580002,655.01,653.97,0.30582442]
[1749413813899,1.08736283,654.95,653.97,0.30582442]
[1749413814099,1.08736283,655.0,653.97,0.30582442]
[1749413814301,1.08736283,654.99,653.97,0.30582442]
[1749413814499,1.08736283,654.98,653.97,0.30582442]
[1749413814700,1.08736283,654.97,653.97,0.30582442]
[1749413815001,1.08736283,654.96,653.98,3.78945825]
[1749413815200,1.08736283,654.95,653.98,4.09527799]
[1749413815404,1.08736283,654.94,653.98,4.09527799]
[1749413815701,1.08736283,655.0,653.98,0.30581974]
[1749413815904,1.08736283,654.99,653.98,0.30581974]
[1749413816104,1.08736283,654.98,653.98,4.09527799]
[1749413816304,1.08736283,654.97,653.98,4.09527799]
[1749413816599,1.08736283,654.96,653.98,0.30581974]
[1749413816804,1.08736283,654.95,653.98,0.30581974]
[1749413817105,1.08736283,654.94,653.98,0.30581974]
[1749413817404,1.08736283,654.93,653.98,0.30581974]
[1749413817605,1.08736283,654.92,653.98,0.30581974]
[1749413817805,1.08736283,654.91,653.98,0.30581974]
[1749413818005,1.08736283,654.9,653.98,0.30581974]
[1749413818202,1.08736283,654.89,653.98,0.30581974]
[1749413818406,0.26580002,655.01,653.98,0.30581974]
[1749413818707,1.09032865,655.0,653.98,0.30581974]
[1749413819002,1.09032865,654.99,653.98,0.30581974]
[1749413819303,1.09032865,654.98,653.98,0.30581974]
[1749413819503,1.09032865,654.97,653.98,0.30581974]
[1749413819702,1.09032865,654.96,653.98,0.30581974]
[1749413820005,1.09032865,654.95,653.98,0.30581974]
[1749413820201,1.09032865,654.94,653.98,0.30581974]
[1749413820402,1.09032865,654.93,653.98,0.30581974]
[1749413820701,1.09032865,654.92,653.98,0.30581974]
[1749413820903,1.09032865,654.91,653.98,0.30581974]
[1749413821103,1.09032865,654.9,653.98,0.30581974]
[1749413821306,1.09032865,654.89,653.98,0.30581974]
[1749413821503,0.26580002,655.01,653.98,0.30581974]
[1749413821708,1.09030964,655.0,653.98,0.30581974]
[1749413822005,1.09030964,654.99,653.98,0.30581974]
[1749413822204,1.09030964,654.98,653.98,0.30581974]
[1749413822408,1.09030964,654.97,653.98,0.30581974]
[1749413822608,1.09030964,654.96,653.98,0.30581974]
[1749413822807,1.09030964,654.95,653.98,0.30581974]
[1749413823007,1.09030964,654.94,653.98,0.30581974]
[1749413823209,1.09030964,654.93,653.98,0.30581974]
[1749413823409,1.09030964,654.92,653.98,0.30581974]
[1749413823709,1.09030964,654.91,653.98,0.30581974]
[1749413823906,1.09030964,654.9,653.98,0.30581974]
[1749413824105,1.09030964,654.89,653.98,0.30581974]
[1749413824409,1.09030964,654.88,653.98,0.30581974]
[1749413824603,1.09030964,654.87,653.98,0.30581974]
[1749413824809,0.26580002,655.01,653.98,0.30581974]
[1749413825109,1.09043573,655.0,653.98,0.30581974]
[1749413825306,1.09043573,654.99,653.98,0.30581974]
[1749413825505,1.09043573,654.98,653.98,0.30581974]
[1749413825706,1.09043573,654.97,653.98,0.30581974]
[1749413826009,1.09043573,654.96,653.98,0.30581974]
[1749413826204,1.09043573,654.95,653.98,0.30581974]
[1749413826408,1.09043573,654.94,653.98,0.30581974]
[1749413826608,1.09043573,654.93,653.98,0.30581974]
[1749413826807,1.09043573,654.92,653.98,0.30581974]
[1749413827010,1.09043573,654.91,653.98,0.30581974]
[1749413827210,1.09043573,654.9,653.98,0.30581974]
[1749413827407,1.09043573,654.89,653.98,0.30581974]
[1749413827608,1.09043573,654.88,653.98,0.30581974]
[1749413827814,1.09043573,654.87,653.98,0.30581974]
[1749413828114,1.09043573,654.86,653.98,0.30581974]
[1749413828313,1.09043573,654.85,653.98,0.30581974]
[1749413828511,1.09043573,654.84,653.98,0.30581974]
[1749413828814,1.09043573,654.83,653.98,0.30581974]
[1749413829114,0.26580002,655.01,653.98,0.30581974]
[1749413829414,1.09052418,655.0,653.98,0.30581974]
[1749413829609,1.09052418,654.99,653.98,0.30581974]
[1749413829813,1.09052418,654.98,653.98,0.30581974]
[1749413830109,1.09052418,654.97,653.98,0.30581974]
[1749413830314,1.09052418,654.96,653.98,0.30581974]
[1749413830512,1.09052418,654.95,653.98,0.30581974]
[1749413830713,1.09052418,654.94,653.98,0.30581974]
[1749413831013,1.09052418,654.93,653.98,0.30581974]
[1749413831313,1.09052418,654.92,653.98,0.30581974]
[1749413831513,1.09052418,654.91,653.98,0.30581974]
[1749413831709,1.09052418,654.9,653.98,0.30581974]
[1749413831913,1.09052418,654.89,653.98,0.30581974]
[1749413832111,1.09052418,654.88,653.98,0.30581974]
[1749413832315,1.09052418,655.0,653.98,0.30581974]
[1749413832614,1.09052418,654.99,653.98,0.30581974]
[1749413832810,1.09052418,654.98,653.98,0.30581974]
[1749413833009,1.09052418,654.97,653.98,0.30581974]
[1749413833315,1.09052418,654.96,653.98,0.30581974]
[1749413833514,1.09052418,654.95,653.98,0.30581974]
[1749413833814,1.09052418,654.94,653.98,0.30581974]
[1749413834010,1.09052418,654.93,653.98,0.30581974]
[1749413834209,1.09052418,654.92,653.98,0.30581974]
[1749413834409,1.09052418,654.91,653.98,0.30581974]
[1749413834613,1.09052418,654.9,653.98,0.30581974]
[1749413834910,1.09052418,654.89,653.98,0.30581974]
[1749413835111,1.09052418,654.88,654.01,3.78945825]
[1749413835312,1.09052418,655.0,654.01,3.78945825]
[1749413835511,1.09052418,654.99,654.02,3.78945825]
[1749413835715,1.09052418,654.98,654.02,3.78945825]
[1749413836015,1.09052418,654.97,654.02,3.78945825]
[1749413836312,1.09052418,654.96,654.02,3.78945825]
[1749413836618,1.09052418,654.95,654.02,3.78945825]
[1749413836912,1.09052418,654.94,654.02,3.78945825]
[1749413837116,1.09052418,654.93,654.02,3.78945825]
[1749413837319,1.09052418,654.92,653.98,0.30581974]
[1749413837513,1.09052418,654.91,653.98,0.30581974]
[1749413837812,1.09052418,654.9,653.98,0.30581974]
[1749413838113,1.09052418,654.89,653.98,0.30581974]
[1749413838315,1.09052418,654.88,653.98,0.30581974]
[1749413838516,1.09052418,654.87,653.98,0.30581974]
[1749413838714,1.09052418,654.86,653.98,0.30581974]
[1749413838916,1.09052418,655.0,653.98,0.30581974]
[1749413839116,1.09052418,654.99,653.98,0.30581974]
[1749413839313,1.09052418,654.98,653.98,0.30581974]
[1749413839518,1.09052418,654.97,653.98,0.30581974]
[1749413839712,1.09052418,654.96,653.98,0.30581974]
[1749413839914,1.09052418,654.95,653.98,0.30581974]
[1749413840218,1.09052418,654.94,653.98,0.30581974]
[1749413840418,1.09052418,654.93,653.98,0.30581974]
[1749413840614,1.09052418,654.92,653.98,0.30581974]
[1749413840915,1.09052418,654.91,653.98,0.30581974]
[1749413841118,1.09052418,654.9,653.98,0.30581974]
[1749413841316,1.09052418,654.89,653.98,0.30581974]
[1749413841519,1.09052418,654.88,653.98,0.30581974]
[1749413841717,1.09052418,654.87,653.98,0.30581974]
[1749413841916,1.09052418,654.86,653.98,0.30581974]
[1749413842121,1.09052418,654.85,653.98,0.30581974]
[1749413842321,1.09052418,654.84,653.98,0.30581974]
[1749413842621,1.09052418,654.83,653.98,0.30581974]
[1749413842823,1.09052418,654.82,653.98,0.30581974]
[1749413843024,1.09052418,654.81,653.98,0.30581974]
[1749413843325,0.26580002,655.01,653.98,0.30581974]
[1749413843520,1.0910955,655.0,653.98,0.30581974]
[1749413843821,1.0910955,654.99,653.98,0.30581974]
[1749413844021,1.0910955,654.98,653.98,0.30581974]
[1749413844224,1.0910955,654.97,653.98,0.30581974]
[1749413844422,1.0910955,654.96,653.98,0.30581974]
[1749413844620,1.0910955,654.95,653.98,0.30581974]
[1749413844823,1.0910955,654.94,653.98,0.30581974]
[1749413845021,1.0910955,654.93,653.98,0.30581974]
[1749413845220,1.0910955,654.92,653.98,0.30581974]
[1749413845419,1.0910955,654.91,653.98,0.30581974]
[1749413845623,1.0910955,654.9,653.98,0.30581974]
[1749413845822,1.0910955,654.89,653.98,0.30581974]
[1749413846022,1.0910955,654.88,653.98,0.30581974]
[1749413846225,1.0910955,654.87,653.98,0.30581974]
[1749413846427,1.0910955,654.86,653.98,0.30581974]
[1749413846619,1.0910955,654.85,653.98,0.30581974]
[1749413846824,1.0910955,654.84,653.98,0.30581974]
[1749413847022,1.0910955,654.83,653.98,0.30581974]
[1749413847326,1.0910955,654.82,653.98,0.30581974]
[1749413847529,1.0910955,654.81,653.98,0.30581974]
[1749413847728,0.26580002,655.01,653.98,0.30581974]
[1749413847929,1.09091534,655.0,653.98,0.30581974]
[1749413848137,1.09091534,654.99,653.98,0.30581974]
[1749413848430,1.09091534,654.98,653.98,0.30581974]
[1749413848630,1.09091534,654.97,653.98,0.30581974]
[1749413848830,1.09091534,654.96,653.98,0.30581974]
[1749413849031,1.09091534,654.95,653.98,0.30581974]
[1749413849230,1.09091534,654.94,653.98,0.30581974]
[1749413849428,1.09091534,654.93,653.98,0.30581974]
[1749413849627,1.09091534,654.92,653.98,0.30581974]
[1749413849827,1.09091534,654.91,653.98,0.30581974]
[1749413850030,1.09091534,654.9,653.98,0.30581974]
[1749413850227,1.09091534,654.89,653.98,0.30581974]
[1749413850532,1.09091534,654.88,653.98,0.30581974]
[1749413850831,1.09091534,654.87,653.98,0.30581974]
[1749413851031,1.09091534,654.86,653.98,0.30581974]
[1749413851229,1.09091534,654.85,653.98,0.30581974]
[1749413851531,1.09091534,654.84,653.98,0.30581974]